bitfinex-derivatives/quotes_SOLF0:USTF0_20250124
["timestamp","ask_amount","ask_price","bid_price","bid_amount"]
[1737739933571,0.94773631,263.89,263.74,65.46629575]
[1737739933871,3.7895,263.82,263.75,3.7904]
[1737739934065,0.9478247,263.81,263.75,3.7904]
[1737739934266,0.9478247,263.8,263.76,0.02495272]
[1737739934462,0.9478247,263.79,263.76,0.02495272]
[1737739934668,0.9478247,263.78,263.76,0.02495272]
[1737739934866,0.9478247,263.77,263.76,3.81525272]
[1737739935063,2.47e-05,263.77,263.76,3.81525272]
[1737739935264,0.02748012,263.81,263.76,0.02495272]
[1737739935465,0.02748012,263.81,263.8,3.7898]
[1737739935668,1.2172,263.9,263.76,0.02495272]
[1737739936069,3.7878,263.94,263.88,3.7886]
[1737739936266,14.3383974,263.95,263.77,1.3261]
[1737739936470,2.56,263.96,263.77,1.3261]
[1737739936675,2.6286,263.98,263.8,14.3383974]
[1737739936876,0.02497581,263.89,263.84,0.02895342]
[1737739937267,0.02497581,263.89,263.88,3.7886]
[1737739938173,0.02497581,263.89,263.86,3.7888]
[1737739938476,0.02497581,263.89,263.84,0.02895342]
[1737739939871,0.02497581,263.89,263.85,3.789]
[1737739940177,0.02497581,263.89,263.84,0.02895342]
[1737739940679,3.7889,263.86,263.84,0.02895342]
[1737739941081,2.4346,263.88,263.71,5.87726153]
[1737739941381,1.2607,263.87,263.71,5.87726153]
[1737739942479,0.02814055,263.82,263.78,3.7899]
[1737739942680,0.02814055,263.82,263.76,0.02689362]
[1737739943982,0.02814055,263.82,263.8,3.7897]
[1737739944791,4.055e-05,263.82,263.8,3.7897]
[1737739945481,4.055e-05,263.82,263.81,3.7896]
[1737739945683,1.2923,263.99,263.8,14.3383974]
[1737739947085,0.0275855,263.92,263.87,0.0270737]
[1737739948078,0.0275855,263.92,263.9,3.7883]
[1737739948478,4.54444706,264.01,263.87,0.0270737]
[1737739948479,0.75754706,264.01,263.87,0.0270737]
[1737739948688,14.3383974,264.08,263.87,0.0270737]
[1737739948885,14.3383974,264.08,263.85,14.3383974]
[1737739949078,18.1241974,264.08,263.85,14.3383974]
[1737739949284,14.3383974,264.08,263.85,14.3383974]
[1737739949986,0.02548374,263.99,263.94,0.02465313]
[1737739950178,0.02548374,263.99,263.91,2.4774]
[1737739950385,2.5927,264.11,263.91,2.4774]
[1737739950584,0.02751762,263.99,263.94,0.02640227]
[1737739950981,3.7859,264.07,264.0,3.7869]
[1737739951190,14.3383974,264.13,263.94,0.02559031]
[1737739951486,14.3383974,264.13,263.91,2.4774]
[1737739951888,1.2416,264.14,263.95,14.3383974]
[1737739952086,3.7851,264.13,264.07,3.7858]
[1737739952385,1.2416,264.14,264.07,3.7858]
[1737739952590,3.8125299,264.13,264.07,3.81367553]
[1737739953282,0.0275299,264.13,264.07,0.02787553]
[1737739953592,0.0275299,264.13,264.08,3.7856]
[1737739953788,0.0275299,264.13,264.07,0.02787553]
[1737739953990,0.0275299,264.13,264.07,3.81357553]
[1737739955288,0.0275299,264.13,264.07,0.02787553]
[1737739956596,3.7853,264.11,264.07,0.02787553]
[1737739956796,14.3659273,264.13,264.07,0.02787553]
[1737739956994,1.3309,264.12,263.96,0.25463]
[1737739958088,1.3309,264.12,264.01,3.7867]
[1737739958289,0.02476077,264.07,264.01,3.81089047]
[1737739958490,0.02476077,264.07,264.01,0.02419047]
[1737739958696,0.02476077,264.07,264.02,3.7865]
[1737739958996,0.02476077,264.07,264.01,0.02419047]
[1737739959397,0.02476077,264.07,264.03,3.7864]
[1737739960303,0.02476077,264.07,264.02,3.7865]
[1737739961206,0.02476077,264.07,264.01,0.02419047]
[1737739961907,3.786,264.06,264.01,3.81089047]
[1737739963106,0.02476077,264.07,264.01,0.02419047]
[1737739963309,2.58476077,264.07,264.01,0.02419047]
[1737739963506,2.5711,264.06,264.01,0.02419047]
[1737739963700,8.95523571,264.05,264.01,0.02419047]
[1737739964106,12.74153571,264.05,264.01,0.02419047]
[1737739964406,8.95523571,264.05,264.01,0.02419047]
[1737739965104,3.7864,264.04,264.01,0.02419047]
[1737739965502,8.95523571,264.05,264.01,0.02419047]
[1737739965710,8.95523571,264.05,263.96,0.25463]
[1737739965909,8.95523571,264.01,263.96,0.25463]
[1737739966108,8.95523571,264.01,263.83,10.29173571]
[1737739966304,1.3179,264.0,263.83,10.29173571]
[1737739966505,8.95523571,263.97,263.87,3.7887]
[1737739966707,8.95523571,263.97,263.89,0.02568701]
[1737739967011,3.7882,263.92,263.89,0.02568701]
[1737739967208,0.02717497,263.95,263.89,0.02568701]
[1737739968107,3.7879,263.94,263.89,0.02568701]
[1737739968310,0.02717497,263.95,263.89,0.02568701]
[1737739970315,3.788,263.93,263.89,0.02568701]
[1737739970510,0.02717497,263.95,263.89,0.02568701]
[1737739971315,2.54,263.94,263.89,0.02568701]
[1737739971514,3.7883,263.9,263.89,0.02568701]
[1737739972111,1.2879,263.93,263.82,3.7894]
[1737739972316,3.7887,263.88,263.82,3.7894]
[1737739972508,1.2879,263.93,263.73,85.23596469]
[1737739972711,1.2879,263.93,263.84,3.7892]
[1737739972916,3.7883,263.91,263.73,85.23596469]
[1737739973115,1.2879,263.93,263.73,85.23596469]
[1737739973313,0.02910009,263.86,263.8,0.02459656]
[1737739974116,0.02910009,263.86,263.83,3.7893]
[1737739974618,0.02910009,263.86,263.8,0.02459656]
[1737739976221,3.7895,263.82,263.8,0.02459656]
[1737739976421,0.02910009,263.86,263.8,0.02459656]
[1737739978118,0.02910009,263.86,263.81,3.7895]
[1737739978924,3.81810009,263.86,263.8,0.02459656]
[1737739979625,0.02910009,263.86,263.8,0.02459656]
[1737739980827,3.7893,263.83,263.8,0.02459656]
[1737739981325,14.33596469,263.85,263.8,0.02459656]
[1737739981522,0.67889821,263.84,263.66,1.3257]
[1737739981825,14.33596469,263.81,263.59,14.33596469]
[1737739982022,14.33596469,263.77,263.72,3.7909]
[1737739982223,14.33596469,263.73,263.56,199.5864]
[1737739982426,14.33596469,263.69,263.61,3.7924]
[1737739982625,0.02681052,263.68,263.63,0.02659597]
[1737739984723,3.7918,263.66,263.63,0.02659597]
[1737739984924,14.33596469,263.67,263.63,0.02659597]
[1737739985123,15.60826469,263.67,263.5,1.2559]
[1737739985426,3.7926,263.6,263.52,3.7938]
[1737739985824,18.12836469,263.62,263.41,65.29133246]
[1737739986022,14.33596469,263.62,263.42,2.5506]
[1737739986221,14.36006373,263.57,263.51,0.0256395]
[1737739986828,0.02409904,263.57,263.51,0.0256395]
[1737739987425,0.02409904,263.57,263.51,3.8195395]
[1737739987627,0.02409904,263.57,263.51,0.0256395]
[1737739988829,0.02409904,263.57,263.55,3.7933]
[1737739989924,9.904e-05,263.57,263.55,3.7933]
[1737739992231,9.904e-05,263.57,263.51,3.8194395]
[1737739992731,9.904e-05,263.57,263.52,3.7937]
[1737739992931,9.904e-05,263.57,263.51,0.0256395]
[1737739993734,8.98242689,263.56,263.51,0.0256395]
[1737739994727,3.7936,263.54,263.51,0.0256395]
[1737739995626,8.98242689,263.52,263.35,10.19932689]
[1737739996633,8.98242689,263.52,263.35,8.98242689]
[1737739996832,0.02623196,263.46,263.41,0.02475309]
[1737739997333,0.02623196,263.46,263.44,3.7949]
[1737739997933,0.02623196,263.46,263.41,0.02475309]
[1737739999736,3.7948,263.45,263.41,0.02475309]
[1737740000030,0.02623196,263.46,263.29,2.5567]
[1737740000231,20.78003321,263.54,263.48,3.7943]
[1737740000438,16.98643321,263.54,263.31,14.38643321]
[1737740001136,14.38643321,263.54,263.36,14.38643321]
[1737740001438,17.00643321,263.59,263.4,0.02419265]
[1737740001638,17.00643321,263.59,263.37,1.2666]
[1737740001639,3.7931,263.57,263.45,3.7947]
[1737740001838,17.00643321,263.59,263.37,1.2666]
[1737740002137,3.7929,263.58,263.43,3.795]
[1737740002337,14.38643321,263.59,263.37,1.2666]
[1737740002638,0.02514723,263.51,263.5,3.7941]
[1737740002829,2.62,263.6,263.41,14.38643321]
[1737740003032,0.0275655,263.53,263.48,0.02420347]
[1737740003338,0.0275655,263.53,263.51,3.7938]
[1737740003536,0.0275655,263.53,263.48,0.02420347]
[1737740003936,6.55e-05,263.53,263.51,3.7939]
[1737740004143,14.38643321,263.69,263.48,0.02420347]
[1737740004539,14.38643321,263.64,263.42,1.2359]
[1737740005240,0.02566927,263.56,263.5,0.02823318]
[1737740006337,0.02566927,263.56,263.54,3.7935]
[1737740006639,0.02566927,263.56,263.5,0.02823318]
[1737740006841,0.02566927,263.56,263.53,3.7936]
[1737740007045,0.02566927,263.56,263.5,0.02823318]
[1737740007842,0.02566927,263.56,263.54,3.7934]
[1737740010147,0.02566927,263.56,263.5,0.02823318]
[1737740010540,0.02566927,263.56,263.51,3.7939]
[1737740010843,0.02566927,263.56,263.5,0.02823318]
[1737740011246,0.02566927,263.56,263.5,3.82213318]
[1737740011639,0.02566927,263.56,263.5,0.02823318]
[1737740011843,3.81886927,263.56,263.5,0.02823318]
[1737740012349,0.02566927,263.56,263.5,0.02823318]
[1737740013150,3.7935,263.55,263.5,0.02823318]
[1737740013346,0.02566927,263.56,263.5,0.02823318]
[1737740014343,3.7939,263.51,263.5,0.02823318]
[1737740014547,14.38643321,263.54,263.37,1.3176]
[1737740014745,14.38643321,263.54,263.39,3.7956]
[1737740015449,3.7946,263.47,263.37,1.3176]
[1737740015749,0.02738504,263.49,263.44,0.02668083]
[1737740015946,0.02738504,263.49,263.45,3.7948]
[1737740017245,0.02738504,263.49,263.44,0.02668083]
[1737740017750,14.41381825,263.49,263.44,0.02668083]
[1737740018146,3.7948,263.45,263.44,0.02668083]
[1737740019150,14.41381825,263.49,263.26,14.38643321]
[1737740019351,14.38643321,263.44,263.32,3.7967]
[1737740019650,8.99862655,263.41,263.32,3.7967]
[1737740019853,8.99862655,263.41,263.3,4.04129]
[1737740020252,8.99862655,263.41,263.3,0.24439]
[1737740020453,0.02635638,263.38,263.33,0.02415395]
[1737740020953,0.02635638,263.38,263.33,3.82065395]
[1737740022352,0.02635638,263.38,263.33,0.02415395]
[1737740022553,0.02635638,263.38,263.37,3.7959]
[1737740022753,1.243,263.5,263.33,0.02415395]
[1737740023053,8.99862655,263.51,263.31,8.99862655]
[1737740023250,8.99862655,263.51,263.35,8.99862655]
[1737740023455,8.99862655,263.51,263.36,3.8149]
[1737740023754,8.99862655,263.51,263.45,3.7947]
[1737740023952,0.0261593,263.46,263.45,3.7947]
[1737740024147,0.0261593,263.46,263.41,0.02511387]
[1737740025053,0.0261593,263.46,263.41,3.82041387]
[1737740025449,0.0261593,263.46,263.41,0.02511387]
[1737740026657,1.2691593,263.46,263.41,0.02511387]
[1737740027156,8.99862655,263.43,263.41,0.02511387]
[1737740027956,8.99862655,263.43,263.27,1.2325]
[1737740028352,3.7957,263.39,263.33,3.7965]
[1737740028657,8.99862655,263.43,263.33,3.7965]
[1737740029060,3.7955,263.4,263.35,0.0286745]
[1737740029258,0.02595521,263.41,263.35,0.0286745]
[1737740029660,3.7956,263.4,263.35,0.0286745]
[1737740030159,0.02595521,263.41,263.35,0.0286745]
[1737740030955,0.02595521,263.41,263.35,3.8247745]
[1737740031156,0.02595521,263.41,263.35,0.0286745]
[1737740032058,0.02595521,263.41,263.36,3.7961]
[1737740032260,0.02595521,263.41,263.35,0.0286745]
[1737740033060,0.02595521,263.41,263.4,3.7955]
[1737740033260,5.521e-05,263.41,263.4,3.7955]
[1737740040872,5.521e-05,263.41,263.4,7.6769]
[1737740041072,10.27672655,263.6,263.4,3.8814]
[1737740041374,8.99862655,263.6,263.43,8.99862655]
[1737740041871,1.2695,263.63,263.47,8.99862655]
[1737740042270,0.02568491,263.58,263.52,0.02670696]
[1737740042474,0.02568491,263.58,263.53,3.7935]
[1737740042664,0.02568491,263.58,263.52,0.02670696]
[1737740043269,0.02568491,263.58,263.56,3.7932]
[1737740043475,2.5312,263.7,263.55,8.99862655]
[1737740043772,8.99862655,263.72,263.55,8.99862655]
[1737740044673,0.02607874,263.66,263.61,0.0244069]
[1737740044874,3.792,263.65,263.61,0.0244069]
[1737740045074,0.02607874,263.66,263.61,0.0244069]
[1737740045370,3.792,263.65,263.61,0.0244069]
[1737740045572,0.02607874,263.66,263.61,0.0244069]
[1737740045773,8.99862655,263.64,263.47,8.99862655]
[1737740045973,8.99862655,263.6,263.43,8.99862655]
[1737740046373,8.99862655,263.6,263.53,3.7936]
[1737740046572,1.3012,263.66,263.42,2.4399]
[1737740046573,8.99862655,263.64,263.47,8.99862655]
[1737740047076,0.02560122,263.58,263.55,3.7932]
[1737740047373,0.02560122,263.58,263.53,0.02618304]
[1737740047574,0.02560122,263.58,263.56,3.7931]
[1737740048073,0.02560122,263.58,263.53,0.02618304]
[1737740049473,3.7935,263.55,263.53,0.02618304]
[1737740050265,3.7938,263.52,263.43,3.795]
[1737740050466,8.99862655,263.56,263.43,3.795]
[1737740050666,8.99862655,263.56,263.42,1.2143]
[1737740050870,8.99862655,263.56,263.43,3.795]
[1737740051470,3.7939,263.52,263.47,0.02784593]
[1737740051775,0.02716059,263.52,263.47,0.02784593]
[1737740052069,3.7941,263.5,263.47,0.02784593]
[1737740053377,0.02716059,263.52,263.47,0.02784593]
[1737740054076,0.02716059,263.52,263.5,3.7939]
[1737740055180,0.02716059,263.52,263.51,3.7939]
[1737740059177,6.059e-05,263.52,263.51,3.7939]
[1737740063277,6.059e-05,263.52,263.51,12.79252655]
[1737740064883,6.059e-05,263.52,263.47,0.02784593]
[1737740065282,6.059e-05,263.52,263.47,3.82224593]
[1737740066278,6.059e-05,263.52,263.48,3.7943]
[1737740067985,6.059e-05,263.52,263.49,3.7942]
[1737740068983,6.059e-05,263.52,263.5,3.7941]
[1737740069486,6.059e-05,263.52,263.47,0.02784593]
[1737740069879,6.059e-05,263.52,263.47,9.02647248]
[1737740070485,6.059e-05,263.52,263.51,3.7939]
[1737740072487,6.059e-05,263.52,263.51,12.79252655]
[1737740072976,11.56862655,263.68,263.51,8.99862655]
[1737740073176,11.56862655,263.68,263.66,3.7917]
[1737740073378,6.3615,263.68,263.55,8.99862655]
[1737740073683,11.56862655,263.68,263.61,3.7925]
[1737740074082,11.56862655,263.68,263.51,8.99862655]
[1737740074282,0.02592624,263.67,263.62,3.81651033]
[1737740074680,0.02592624,263.67,263.64,3.792]
[1737740075286,0.02592624,263.67,263.62,0.02421033]
[1737740075481,0.02592624,263.67,263.62,3.81641033]
[1737740075783,0.02592624,263.67,263.62,0.02421033]
[1737740075982,0.02592624,263.67,263.66,3.7918]
[1737740077282,0.02592624,263.67,263.64,3.792]
[1737740078493,0.02592624,263.67,263.66,3.7918]
[1737740082994,0.02592624,263.67,263.64,3.7919]
[1737740083194,0.02592624,263.67,263.62,0.02421033]
[1737740083792,0.02592624,263.67,263.64,3.792]
[1737740084595,0.02592624,263.67,263.62,3.81651033]
[1737740084793,0.02592624,263.67,263.62,0.02421033]
[1737740084999,3.81752624,263.67,263.62,0.02421033]
[1737740085198,0.02592624,263.67,263.62,0.02421033]
[1737740085496,3.7922,263.63,263.62,0.02421033]
[1737740086799,8.99862655,263.59,263.51,3.7938]
[1737740086999,8.99862655,263.59,263.43,8.99862655]
[1737740087398,3.7931,263.57,263.43,8.99862655]
[1737740087891,0.02522618,263.55,263.49,0.02460327]
[1737740088098,0.02522618,263.55,263.51,3.7939]
[1737740088300,0.02522618,263.55,263.49,0.02460327]
[1737740089002,0.02522618,263.55,263.54,3.7935]
[1737740090307,0.02522618,263.55,263.49,0.02460327]
[1737740091010,0.02522618,263.55,263.51,3.7939]
[1737740091606,0.02522618,263.55,263.49,0.02460327]
[1737740091804,0.02522618,263.55,263.52,3.7938]
[1737740092509,0.02522618,263.55,263.49,0.02460327]
[1737740092703,0.02522618,263.55,263.51,3.7939]
[1737740092908,0.02522618,263.55,263.49,0.02460327]
[1737740093107,0.02522618,263.55,263.52,3.7937]
[1737740097715,9.02385273,263.55,263.49,0.02460327]
[1737740097912,8.99862655,263.51,263.34,8.99862655]
[1737740098607,3.7944,263.48,263.42,3.7952]
[1737740099011,8.99862655,263.51,263.34,8.99862655]
[1737740099211,0.02597189,263.48,263.42,0.02806834]
[1737740100111,0.02597189,263.48,263.44,3.7949]
[1737740100315,0.02597189,263.48,263.42,0.02806834]
[1737740100716,0.02597189,263.48,263.47,3.7945]
[1737740100916,0.02597189,263.48,263.42,0.02806834]
[1737740102118,0.02597189,263.48,263.44,3.7949]
[1737740102809,0.02597189,263.48,263.42,0.02806834]
[1737740103920,0.02597189,263.48,263.47,3.7945]
[1737740106120,0.02597189,263.48,263.42,0.02806834]
[1737740106919,3.82047189,263.48,263.43,3.7949]
[1737740107120,0.02597189,263.48,263.42,0.02806834]
[1737740108417,0.02597189,263.48,263.44,3.7949]
[1737740109020,3.82037189,263.48,263.42,0.02806834]
[1737740109821,3.82037189,263.48,263.42,3.82316834]
[1737740110023,0.02597189,263.48,263.42,0.02806834]
[1737740110324,0.02597189,263.48,263.47,3.7945]
[1737740110925,11.53522655,263.63,263.57,3.7931]
[1737740111528,11.53522655,263.63,263.46,8.99862655]
[1737740111825,14.11522655,263.63,263.46,8.99862655]
[1737740112024,0.02728369,263.57,263.52,0.02636949]
[1737740113527,0.02728369,263.57,263.53,3.7936]
[1737740113728,0.02728369,263.57,263.52,0.02636949]
[1737740114227,0.02728369,263.57,263.56,3.7932]
[1737740114422,8.369e-05,263.57,263.56,3.7932]
[1737740126936,11.57862655,263.75,263.55,2.5565]
[1737740127132,8.99862655,263.75,263.6,8.99862655]
[1737740127435,8.99862655,263.71,263.55,2.5565]
[1737740127637,8.99862655,263.71,263.55,1.3177]
[1737740127837,8.99862655,263.67,263.53,1.2413]
[1737740128039,3.7921,263.64,263.53,1.2413]
[1737740128337,8.99862655,263.67,263.53,1.2413]
[1737740128338,0.02884972,263.63,263.57,0.02766477]
[1737740129039,0.02884972,263.63,263.62,3.7923]
[1737740130140,4.972e-05,263.63,263.62,3.7923]
[1737740130337,4.972e-05,263.63,263.6,3.7926]
[1737740130637,4.972e-05,263.63,263.57,0.02766477]
[1737740130842,3.79234972,263.63,263.57,3.82076477]
[1737740132141,4.972e-05,263.63,263.58,3.7929]
[1737740132544,4.972e-05,263.63,263.57,0.02766477]
[1737740132839,4.972e-05,263.63,263.59,3.7927]
[1737740135243,4.972e-05,263.63,263.6,3.7926]
[1737740136045,4.972e-05,263.63,263.62,3.7923]
[1737740140545,4.972e-05,263.63,263.57,0.02766477]
[1737740141548,4.972e-05,263.63,263.62,3.7923]
[1737740142750,4.972e-05,263.63,263.57,0.02766477]
[1737740143439,4.972e-05,263.63,263.6,3.7926]
[1737740144042,4.972e-05,263.63,263.57,0.02766477]
[1737740144646,4.972e-05,263.63,263.62,3.7923]
[1737740144850,4.972e-05,263.63,263.57,0.02766477]
[1737740145944,4.972e-05,263.63,263.62,3.7923]
[1737740146347,4.972e-05,263.63,263.58,3.7928]
[1737740146547,4.972e-05,263.63,263.57,0.02766477]
[1737740147045,4.972e-05,263.63,263.61,3.7925]
[1737740147247,4.972e-05,263.63,263.57,0.02766477]
[1737740147647,4.972e-05,263.63,263.62,3.7923]
[1737740149148,4.972e-05,263.63,263.57,0.02766477]
[1737740150049,4.972e-05,263.63,263.58,3.7929]
[1737740150751,4.972e-05,263.63,263.59,3.7927]
[1737740151649,4.972e-05,263.63,263.6,3.7926]
[1737740152245,4.972e-05,263.63,263.62,3.7923]
[1737740152753,4.972e-05,263.63,263.57,0.02766477]
[1737740153051,4.972e-05,263.63,263.6,3.7925]
[1737740153249,4.972e-05,263.63,263.57,0.02766477]
[1737740154148,4.972e-05,263.63,263.62,3.7923]
[1737740159350,4.972e-05,263.63,263.58,3.7928]
[1737740159547,4.972e-05,263.63,263.57,0.02766477]
[1737740160256,3.7924,263.62,263.57,3.82066477]
[1737740160456,4.972e-05,263.63,263.57,0.02766477]
[1737740160650,4.972e-05,263.63,263.6,3.7926]
[1737740160855,4.972e-05,263.63,263.57,0.02766477]
[1737740161956,4.972e-05,263.63,263.62,3.7923]
[1737740164357,2.6183,263.77,263.6,8.99862655]
[1737740164551,0.68113964,263.76,263.69,3.7912]
[1737740164751,3.7906,263.74,263.64,8.99862655]
[1737740164957,1.2877,263.77,263.64,8.99862655]
[1737740165157,0.6811444,263.76,263.68,3.7915]
[1737740165360,4.4716444,263.76,263.64,8.99862655]
[1737740165659,1.2877,263.77,263.64,8.99862655]
[1737740165660,0.02646069,263.75,263.72,3.7908]
[1737740165862,0.02646069,263.75,263.69,0.02447938]
[1737740166060,0.70759604,263.75,263.69,0.02447938]
[1737740166267,0.02646069,263.75,263.69,0.02447938]
[1737740166463,0.70759629,263.75,263.69,0.02447938]
[1737740166766,3.81696069,263.75,263.69,0.02447938]
[1737740166968,0.02646069,263.75,263.69,0.02447938]
[1737740167165,8.99862655,263.73,263.69,0.02447938]
[1737740167568,3.7909,263.72,263.69,0.02447938]
[1737740167769,8.99862655,263.73,263.69,0.02447938]
[1737740169166,3.7911,263.71,263.69,0.02447938]
[1737740169669,2.54646069,263.75,263.69,0.02447938]
[1737740170269,0.02646069,263.75,263.69,0.02447938]
[1737740170472,0.02646069,263.75,263.74,3.7906]
[1737740170672,0.02646069,263.75,263.69,0.02447938]
[1737740171567,8.99862655,263.74,263.69,0.02447938]
[1737740173666,3.7908,263.73,263.69,0.02447938]
[1737740173872,8.99862655,263.74,263.69,0.02447938]
[1737740174671,12.78932655,263.74,263.69,0.02447938]
[1737740175473,3.7907,263.74,263.69,0.02447938]
[1737740175866,3.7908,263.73,263.69,0.02447938]
[1737740176971,3.7912,263.7,263.69,0.02447938]
[1737740177566,8.99862655,263.73,263.69,0.02447938]
[1737740177965,8.99862655,263.73,263.58,0.24777]
[1737740178272,8.99862655,263.69,263.58,0.24777]
[1737740178473,8.99862655,263.69,263.61,3.7924]
[1737740178771,3.7916,263.67,263.58,0.24777]
[1737740179076,0.02787163,263.65,263.64,3.792]
[1737740180467,0.02787163,263.65,263.6,0.02723702]
[1737740181673,0.02787163,263.65,263.62,3.7922]
[1737740182671,0.02787163,263.65,263.64,3.7921]
[1737740186270,0.02787163,263.65,263.63,3.7922]
[1737740186475,0.02787163,263.65,263.6,0.02723702]
[1737740187075,0.02787163,263.65,263.64,3.7921]
[1737740188178,0.02787163,263.65,263.63,3.7922]
[1737740188380,0.02787163,263.65,263.6,0.02723702]
[1737740188877,0.02787163,263.65,263.64,3.7921]
[1737740190890,0.02787163,263.65,263.6,0.02723702]
[1737740191683,9.02649818,263.65,263.6,0.02723702]
[1737740191884,3.7923,263.63,263.6,0.02723702]
[1737740193386,9.02649818,263.65,263.6,0.02723702]
[1737740193586,0.02787163,263.65,263.6,0.02723702]
[1737740194183,0.02787163,263.65,263.64,3.7921]
[1737740200686,0.02787163,263.65,263.6,0.02723702]
[1737740202093,0.02787163,263.65,263.64,3.7921]
[1737740202392,0.02787163,263.65,263.6,0.02723702]
[1737740203187,3.7923,263.63,263.6,0.02723702]
[1737740203895,3.81987163,263.65,263.6,0.02723702]
[1737740204092,0.02787163,263.65,263.6,0.02723702]
[1737740204593,3.81977163,263.65,263.6,0.02723702]
[1737740204895,0.02787163,263.65,263.6,3.81983702]
[1737740205788,0.02787163,263.65,263.61,3.7925]
[1737740206597,0.02787163,263.65,263.6,0.02723702]
[1737740207197,0.02787163,263.65,263.64,3.7921]
[1737740207797,1.2106,263.74,263.6,0.02723702]
[1737740207999,1.2106,263.74,263.7,3.7911]
[1737740208398,1.2106,263.74,263.6,1.3067]
[1737740208600,1.2106,263.74,263.68,3.7913]
[1737740208805,10.21212655,263.79,263.6,1.3067]
[1737740208997,0.02694593,263.74,263.72,3.7908]
[1737740209696,0.02694593,263.74,263.68,0.02901593]
[1737740209896,0.02694593,263.74,263.73,3.7908]
[1737740210301,2.5,263.83,263.8,3.7897]
[1737740210501,2.5,263.83,263.66,8.99862655]
[1737740211196,8.99862655,263.87,263.66,8.99862655]
[1737740211395,11.49862655,263.87,263.66,8.99862655]
[1737740211596,0.025086,263.79,263.74,0.02892638]
[1737740213300,1.261486,263.79,263.74,0.02892638]
[1737740213901,3.79,263.78,263.74,0.02892638]
[1737740216002,3.7904,263.76,263.74,0.02892638]
[1737740216305,8.99862655,263.76,263.74,0.02892638]
[1737740216499,8.99862655,263.76,263.61,1.3415]
[1737740216707,8.99862655,263.76,263.6,1.3067]
[1737740216903,8.99862655,263.72,263.6,1.3067]
[1737740217303,3.7918,263.66,263.59,3.7928]
[1737740217696,0.02874957,263.65,263.6,0.0245102]
[1737740218098,3.82074957,263.65,263.6,0.0245102]
[1737740218498,0.02874957,263.65,263.6,0.0245102]
[1737740218701,3.7922,263.64,263.6,0.0245102]
[1737740219106,0.02874957,263.65,263.6,0.0245102]
[1737740220605,0.02874957,263.65,263.64,3.7921]
[1737740220809,0.02874957,263.65,263.6,0.0245102]
[1737740221402,0.02874957,263.65,263.62,3.7922]
[1737740221600,0.02874957,263.65,263.6,0.0245102]
[1737740222010,3.7921,263.64,263.6,0.0245102]
[1737740222507,3.7924,263.62,263.6,0.0245102]
[1737740223303,3.7922,263.63,263.6,0.0245102]
[1737740223609,0.02874957,263.65,263.6,0.0245102]
[1737740224211,3.7924,263.62,263.6,0.0245102]
[1737740225507,0.02874957,263.65,263.6,0.0245102]
[1737740225909,3.7925,263.62,263.6,0.0245102]
[1737740226207,8.99862655,263.64,263.58,0.24777]
[1737740226404,8.99862655,263.59,263.58,0.24777]
[1737740226805,3.7936,263.54,263.48,3.7943]
[1737740227004,8.99862655,263.59,263.42,8.99862655]
[1737740227413,0.02629113,263.56,263.5,0.02421386]
[1737740228010,0.02629113,263.56,263.5,9.02284041]
[1737740228207,0.02629113,263.56,263.54,8.99862655]
[1737740228618,3.6918,263.67,263.54,8.99862655]
[1737740229610,8.99862655,263.75,263.58,0.02413858]
[1737740229817,8.99862655,263.75,263.59,8.99862655]
[1737740230022,2.5,263.76,263.59,8.99862655]
[1737740230023,0.02599463,263.69,263.65,3.7918]
[1737740230220,0.02599463,263.69,263.64,0.0291935]
[1737740230620,11.50182655,263.79,263.64,0.0291935]
[1737740230816,11.50182655,263.79,263.64,1.3591935]
[1737740231819,0.02484845,263.74,263.64,1.3591935]
[1737740232321,0.02484845,263.74,263.71,3.7909]
[1737740233224,0.02484845,263.74,263.72,3.7908]
[1737740234424,2.5,263.86,263.7,0.02559459]
[1737740234725,0.68081,263.85,263.64,1.33]
[1737740235424,0.02712219,263.77,263.72,0.02770183]
[1737740235921,0.02712219,263.77,263.73,3.7907]
[1737740236126,0.02712219,263.77,263.72,0.02770183]
[1737740236828,0.02712219,263.77,263.75,3.7905]
[1737740237127,0.02712219,263.77,263.72,0.02770183]
[1737740238026,0.02712219,263.77,263.57,1.238]
[1737740238027,0.02712219,263.77,263.67,3.7915]
[1737740238229,1.2664,263.79,263.67,3.7915]
[1737740238423,0.68091474,263.78,263.67,3.7915]
[1737740238823,3.7904,263.76,263.57,1.238]
[1737740239326,0.02802516,263.69,263.64,0.02557162]
[1737740239720,0.02802516,263.69,263.68,3.7915]
[1737740240421,2.516e-05,263.69,263.68,3.7915]
[1737740244927,2.516e-05,263.69,263.64,0.02557162]
[1737740246234,2.516e-05,263.69,263.68,3.7915]
[1737740255335,0.68032962,263.84,263.83,3.7893]
[1737740255535,1.245,263.86,263.67,7.5832]